lending/lending_fUSD_20241229
["ID","MTS","AMOUNT","RATE_DAILY","PERIOD"]
[347070487,1735489858694,-839.13,0.00012359,2]
[347070488,1735489858704,-500.0,0.00012359,2]
[347070489,1735489858714,-1665.61,0.00012359,2]
[347070490,1735489858723,-500.0,0.00012359,2]
[347070491,1735489858733,-11603.09,0.00012359,2]
[347070492,1735489858743,-1447.4,0.00012359,2]
[347070493,1735489858757,-2519.46,0.00012359,2]
[347070494,1735489858766,-1858.03,0.00012359,2]
[347070495,1735489858776,-500.0,0.00012359,2]
[347070496,1735489858785,-789.12,0.0001236,2]
[347070497,1735489858797,-500.0,0.0001236,2]
[347070498,1735489858806,-640.3,0.0001236,2]
[347070499,1735489858815,-500.0,0.0001236,2]
[347070500,1735489858825,-682.07,0.0001236,2]
[347070501,1735489858834,-500.0,0.0001236,2]
[347070502,1735489858844,-500.0,0.0001236,2]
[347070503,1735489858853,-500.0,0.0001236,2]
[347070504,1735489858862,-742.88,0.0001236,2]
[347070505,1735489858872,-500.0,0.0001236,2]
[347070506,1735489858881,-500.0,0.0001236,2]
[347070507,1735489858890,-578.48,0.0001236,2]
[347070508,1735489858901,-969.72,0.0001236,2]
[347070509,1735489858910,-766.29,0.0001236,2]
[347070510,1735489858919,-500.0,0.0001236,2]
[347070511,1735489858929,-500.0,0.0001236,2]
[347070512,1735489858938,-500.0,0.0001236,2]
[347070513,1735489858948,-500.0,0.0001236,2]
[347070514,1735489858958,-500.0,0.0001236,2]
[347070515,1735489858968,-950.22,0.0001236,2]
[347070516,1735489858979,-200.68327263,0.0001236,2]
[347070517,1735489858988,-500.0,0.0001236,2]
[347070518,1735489858998,-500.0,0.0001236,2]
[347070519,1735489859007,-500.0,0.0001236,2]
[347070520,1735489859017,-500.0,0.0001236,2]
[347070521,1735489859026,-500.0,0.0001236,2]
[347070522,1735489859036,-500.0,0.0001236,2]
[347070523,1735489859045,-500.0,0.0001236,2]
[347070524,1735489859055,-500.0,0.0001236,2]
[347070525,1735489859064,-912.48,0.0001236,2]
[347070526,1735489859073,-500.0,0.0001236,2]
[347070527,1735489859083,-661.25,0.0001236,2]
[347070528,1735489859092,-500.0,0.0001236,2]
[347070529,1735489859102,-500.0,0.0001236,2]
[347070530,1735489859111,-500.0,0.0001236,2]
[347070531,1735489859120,-500.0,0.0001236,2]
[347070532,1735489859129,-1210.33,0.0001236,2]
[347070533,1735489859139,-500.0,0.0001236,2]
[347070534,1735489859149,-254.69760908,0.0001236,2]
[347070535,1735489859158,-500.0,0.0001236,2]
[347070536,1735489859168,-500.0,0.0001236,2]
[347070537,1735489859178,-500.0,0.0001236,2]
[347070538,1735489859187,-500.0,0.0001236,2]
[347070539,1735489859196,-502.31,0.0001236,2]
[347070540,1735489859206,-500.0,0.0001236,2]
[347070541,1735489859215,-500.0,0.0001236,2]
[347070542,1735489859225,-500.0,0.0001236,2]
[347070543,1735489859234,-500.0,0.0001236,2]
[347070544,1735489859243,-500.0,0.0001236,2]
[347070545,1735489859253,-500.0,0.0001236,2]
[347070546,1735489859263,-500.0,0.0001236,2]
[347070547,1735489859272,-500.0,0.0001236,2]
[347070548,1735489859281,-644.59,0.0001236,2]
[347070549,1735489859291,-500.0,0.0001236,2]
[347070550,1735489859300,-500.0,0.0001236,2]
[347070551,1735489859310,-500.0,0.0001236,2]
[347070552,1735489859319,-1137.54,0.0001236,2]
[347070553,1735489859328,-500.0,0.0001236,2]
[347070554,1735489859337,-500.0,0.0001236,2]
[347070555,1735489859346,-500.0,0.0001236,2]
[347070556,1735489859356,-814.21,0.0001236,2]
[347070557,1735489859367,-500.0,0.0001236,2]
[347070558,1735489859376,-500.0,0.0001236,2]
[347070559,1735489859385,-717.64,0.0001236,2]
[347070560,1735489859394,-1253.64,0.0001236,2]
[347070561,1735489859403,-500.0,0.0001236,2]
[347070562,1735489859413,-500.0,0.0001236,2]
[347070563,1735489859422,-508.54,0.0001236,2]
[347070564,1735489859431,-500.0,0.0001236,2]
[347070565,1735489859440,-500.0,0.0001236,2]
[347070566,1735489859450,-500.0,0.0001236,2]
[347070567,1735489859459,-500.0,0.0001236,2]
[347070568,1735489859468,-500.0,0.0001236,2]
[347070569,1735489859477,-500.0,0.0001236,2]
[347070570,1735489859486,-500.0,0.0001236,2]
[347070571,1735489859496,-500.0,0.0001236,2]
[347070572,1735489859506,-1130.46,0.0001236,2]
[347070573,1735489859516,-623.05,0.0001236,2]
[347070574,1735489859525,-500.0,0.0001236,2]
[347070575,1735489859535,-500.0,0.0001236,2]
[347070576,1735489859544,-913.53,0.0001236,2]
[347070577,1735489859553,-1090.0,0.0001236,2]
[347070578,1735489859562,-605.54,0.0001236,2]
[347070579,1735489859571,-500.0,0.0001236,2]
[347070580,1735489859580,-626.31,0.0001236,2]
[347070581,1735489859590,-500.0,0.0001236,2]
[347070582,1735489859598,-500.0,0.0001236,2]
[347070583,1735489859608,-517.37,0.0001236,2]
[347070584,1735489859617,-500.0,0.0001236,2]
[347070585,1735489859627,-500.0,0.0001236,2]
[347070586,1735489859636,-500.0,0.0001236,2]
[347070587,1735489859645,-500.0,0.0001236,2]
[347070588,1735489859654,-687.05,0.0001236,2]
[347070589,1735489859663,-500.0,0.0001236,2]
[347070590,1735489859671,-500.0,0.0001236,2]
[347070591,1735489859681,-549.65,0.0001236,2]
[347070592,1735489859690,-500.0,0.0001236,2]
[347070593,1735489859699,-500.0,0.0001236,2]
[347070594,1735489859708,-853.21,0.0001236,2]
[347070595,1735489859717,-500.0,0.0001236,2]
[347070596,1735489859726,-500.0,0.0001236,2]
[347070597,1735489859735,-500.0,0.0001236,2]
[347070598,1735489859745,-500.0,0.0001236,2]
[347070599,1735489859758,-500.0,0.0001236,2]
[347070600,1735489859767,-500.0,0.0001236,2]
[347070601,1735489859775,-500.0,0.0001236,2]
[347070602,1735489859785,-500.0,0.0001236,2]
[347070603,1735489859795,-529.86,0.0001236,2]
[347070604,1735489859804,-725.9,0.0001236,2]
[347070605,1735489859813,-500.0,0.0001236,2]
[347070606,1735489859823,-500.0,0.0001236,2]
[347070607,1735489859832,-500.0,0.0001236,2]
[347070608,1735489859842,-1263.22,0.0001236,2]
[347070609,1735489859851,-500.0,0.0001236,2]
[347070610,1735489859860,-500.0,0.0001236,2]
[347070611,1735489859870,-178.55522039,0.0001236,2]
[347070612,1735489859879,-500.0,0.0001236,2]
[347070613,1735489859888,-500.0,0.0001236,2]
[347070614,1735489859897,-920.97,0.0001236,2]
[347070615,1735489859906,-500.0,0.0001236,2]
[347070616,1735489859915,-500.0,0.0001236,2]
[347070617,1735489859924,-500.0,0.0001236,2]
[347070618,1735489859934,-500.0,0.0001236,2]
[347070619,1735489859943,-1244.8,0.0001236,2]
[347070620,1735489859953,-500.0,0.0001236,2]
[347070621,1735489859962,-784.27,0.0001236,2]
[347070622,1735489859972,-700.7,0.0001236,2]
[347070623,1735489859982,-500.0,0.0001236,2]
[347070624,1735489859991,-500.0,0.0001236,2]
[347070625,1735489860001,-503.37,0.0001236,2]
[347070626,1735489860012,-500.0,0.0001236,2]
[347070627,1735489860022,-500.0,0.0001236,2]
[347070628,1735489860032,-896.25,0.0001236,2]
[347070629,1735489860042,-396.17389703,0.0001236,2]
[347070630,1735489860052,-1160.49,0.0001236,2]
[347070631,1735489860062,-500.0,0.0001236,2]
[347070632,1735489860072,-573.61,0.0001236,2]
[347070633,1735489860082,-500.0,0.0001236,2]
[347070634,1735489860092,-500.0,0.0001236,2]
[347070635,1735489860101,-1348.21,0.0001236,2]
[347070636,1735489860111,-500.0,0.0001236,2]
[347070637,1735489860121,-500.0,0.0001236,2]
[347070638,1735489860131,-500.0,0.0001236,2]
[347070639,1735489860140,-500.0,0.0001236,2]
[347070640,1735489860150,-548.05,0.0001236,2]
[347070641,1735489860159,-500.0,0.0001236,2]
[347070642,1735489860168,-500.0,0.0001236,2]
[347070643,1735489860178,-500.0,0.0001236,2]
[347070644,1735489860187,-500.0,0.0001236,2]
[347070645,1735489860198,-500.0,0.0001236,2]
[347070646,1735489860207,-500.0,0.0001236,2]
[347070647,1735489860217,-707.32,0.0001236,2]
[347070648,1735489860227,-500.0,0.0001236,2]
[347070649,1735489860236,-500.0,0.0001236,2]
[347070650,1735489860246,-761.45,0.0001236,2]
[347070651,1735489860257,-515.67,0.0001236,2]
[347070652,1735489860267,-151.69871502,0.0001236,2]
[347070653,1735489860276,-500.0,0.0001236,2]
[347070654,1735489860285,-655.36,0.0001236,2]
[347070655,1735489860295,-500.0,0.0001236,2]
[347070656,1735489860304,-500.0,0.0001236,2]
[347070657,1735489860314,-1111.12,0.0001236,2]
[347070658,1735489860324,-504.53,0.0001236,2]
[347070659,1735489860334,-500.0,0.0001236,2]
[347070660,1735489860344,-500.0,0.0001236,2]
[347070661,1735489860354,-500.0,0.0001236,2]
[347070662,1735489860363,-500.0,0.0001236,2]
[347070663,1735489860538,-939.99,0.0001236,2]
[347070664,1735489860547,-500.0,0.0001236,2]
[347070665,1735489860557,-500.0,0.0001236,2]
[347070666,1735489860566,-500.0,0.0001236,2]
[347070667,1735489860575,-500.0,0.0001236,2]
[347070668,1735489860584,-670.09,0.0001236,2]
[347070669,1735489860593,-500.0,0.0001236,2]
[347070670,1735489860602,-500.0,0.0001236,2]
[347070671,1735489860612,-516.68137647,0.0001236,2]
[347070672,1735489860622,-500.0,0.0001236,2]
[347070673,1735489860631,-500.0,0.0001236,2]
[347070674,1735489860640,-500.0,0.0001236,2]
[347070675,1735489860649,-500.0,0.0001236,2]
[347070676,1735489860658,-500.0,0.0001236,2]
[347070677,1735489860668,-151.0,0.00012361,2]
[347070678,1735489860677,-500.0,0.00012361,2]
[347070679,1735489860686,-500.0,0.00012361,2]
[347070680,1735489860696,-500.0,0.00012361,2]
[347070681,1735489860705,-500.0,0.00012361,2]
[347070682,1735489860715,-500.0,0.00012361,2]
[347070683,1735489860725,-500.0,0.00012361,2]
[347070684,1735489860734,-342.32966108,0.00012361,2]
[347070685,1735489860745,-500.0,0.00012361,2]
[347070686,1735489860757,-500.0,0.00012361,2]
[347070687,1735489860767,-500.0,0.00012361,2]
[347070688,1735489860777,-635.03,0.00012361,2]
[347070689,1735489860787,-500.0,0.00012361,2]
[347070690,1735489860798,-739.18,0.00012361,2]
[347070691,1735489860807,-500.0,0.00012361,2]
[347070692,1735489860817,-1016.64,0.00012361,2]
[347070693,1735489860827,-500.0,0.00012361,2]
[347070694,1735489860837,-3511.19,0.00012361,2]
[347070695,1735489860847,-424.16141716,0.00012361,2]
[347070696,1735489860857,-831.8,0.00012361,2]
[347070697,1735489860867,-1944.21,0.00012361,2]
[347070698,1735489860877,-500.0,0.00012361,2]
[347070699,1735489860886,-500.0,0.00012361,2]
[347070700,1735489860896,-500.0,0.00012361,2]
[347070701,1735489860906,-1205.91,0.00012361,2]
[347070702,1735489860915,-500.0,0.00012361,2]
[347070703,1735489860925,-588.68640571,0.00012361,2]
[347070704,1735489860934,-3599.17,0.00012361,2]
[347070705,1735489860943,-500.0,0.00012361,7]
[347070706,1735489860952,-778.37,0.00012361,2]
[347070707,1735489860962,-211.66405838,0.00012361,2]
[347070708,1735489860971,-764.39,0.00012361,2]
[347070709,1735489860981,-500.0,0.00012361,2]
[347070710,1735489860990,-858.22,0.00012361,2]
[347070711,1735489860999,-500.0,0.00012361,2]
[347070712,1735489861010,-500.0,0.00012361,2]
[347070713,1735489861020,-1078.5,0.00012361,2]
[347070714,1735489861029,-500.0,0.00012361,2]
[347070715,1735489861039,-2340.55,0.00012361,2]
[347070716,1735489861049,-1053.53,0.00012361,2]
[347070717,1735489861058,-531.43,0.00012361,2]
[347070718,1735489861067,-500.0,0.00012361,2]
[347070719,1735489861077,-1041.24,0.00012361,2]
[347070720,1735489861087,-3755.9,0.00012361,2]
[347070721,1735489861097,-500.0,0.00012361,2]
[347070722,1735489861107,-500.0,0.00012361,2]
[347070723,1735489861117,-500.0,0.00012361,2]
[347070724,1735489861127,-679.8,0.00012361,2]
[347070725,1735489861138,-500.0,0.00012361,2]
[347070726,1735489861148,-3562.83,0.00012361,2]
[347070727,1735489861157,-500.0,0.00012361,2]
[347070728,1735489861168,-500.0,0.00012361,2]
[347070729,1735489861177,-662.99,0.00012361,2]
[347070730,1735489861190,-500.0,0.00012361,2]
[347070731,1735489861199,-500.0,0.00012361,2]
[347070732,1735489861208,-530.53,0.00012361,2]
[347070733,1735489861217,-2528.19,0.00012361,2]
[347070734,1735489861227,-500.0,0.00012361,2]
[347070735,1735489861236,-500.0,0.00012361,2]
[347070736,1735489861246,-676.14,0.00012361,2]
[347070737,1735489861255,-500.0,0.00012361,2]
[347070738,1735489861265,-869.7,0.00012361,2]
[347070739,1735489861274,-500.0,0.00012361,2]
[347070740,1735489861284,-885.94,0.00012361,2]
[347070741,1735489861294,-500.0,0.00012361,2]
[347070742,1735489861303,-151.0,0.00012361,2]
[347070743,1735489861313,-500.0,0.00012361,2]
[347070744,1735489861322,-1387.4,0.00012361,2]
[347070745,1735489861332,-500.0,0.00012361,2]
[347070746,1735489861341,-151.0,0.00012361,2]
[347070747,1735489861351,-500.0,0.00012361,2]
[347070748,1735489861360,-707.66,0.00012361,2]
[347070749,1735489861370,-6099.26,0.00012361,2]
[347070750,1735489861379,-1169.27,0.00012361,2]
[347070751,1735489861389,-151.0,0.00012361,2]
[347070752,1735489861398,-151.0,0.00012361,2]
[347070753,1735489861408,-732.6,0.00012361,2]
[347070754,1735489861417,-151.0,0.00012361,2]
[347070755,1735489861427,-500.0,0.00012361,2]
[347070756,1735489861437,-1183.54,0.00012361,2]
[347070757,1735489861446,-555.13,0.00012361,2]
[347070758,1735489861455,-151.0,0.00012361,2]
[347070759,1735489861465,-152.934914,0.00012361,2]
[347070760,1735489861474,-3945.51,0.00012361,2]
[347070761,1735489861484,-500.0,0.00012361,2]
[347070762,1735489861493,-500.0,0.00012361,2]
[347070763,1735489861502,-2075.97,0.00012361,2]
[347070764,1735489861515,-654.05,0.00012361,2]
[347070765,1735489861526,-627.34,0.00012361,2]
[347070766,1735489861535,-1345.89,0.00012361,2]
[347070767,1735489861545,-14284.14,0.00012361,2]
[347070768,1735489861555,-1061.45,0.00012361,2]
[347070769,1735489861564,-500.0,0.00012361,2]
[347070770,1735489861573,-1058.29,0.00012361,2]
[347070771,1735489861582,-500.0,0.00012361,2]
[347070772,1735489861592,-10147.36,0.00012361,2]
[347070773,1735489861602,-500.0,0.00012361,2]
[347070774,1735489861611,-853.86,0.00012361,2]
[347070775,1735489861621,-1697.41,0.00012361,2]
[347070776,1735489861630,-500.0,0.00012361,2]
[347070777,1735489861640,-1107.23,0.00012361,2]
[347070778,1735489861649,-547.58,0.00012361,2]
[347070779,1735489861658,-1236.84,0.00012361,2]
[347070780,1735489861678,-500.0,0.00012361,2]
[347070781,1735489861699,-151.0,0.00012361,2]
[347070782,1735489861719,-151.0,0.00012361,2]
[347070783,1735489861737,-1403.26,0.00012361,2]
[347070784,1735489861756,-638.45,0.00012361,2]
[347070785,1735489861772,-954.3,0.00012361,2]
[347070786,1735489861788,-749.83,0.00012361,2]
[347070787,1735489861807,-1321.25,0.00012361,2]
[347070788,1735489861825,-3600.62,0.00012361,2]
[347070789,1735489861845,-750.79,0.00012361,2]
[347070790,1735489861861,-776.0,0.00012361,2]
[347070791,1735489861879,-2295.24,0.00012361,2]
[347070792,1735489861895,-743.69,0.00012361,2]
[347070793,1735489861908,-637.29,0.00012361,2]
[347070794,1735489861928,-528.46,0.00012361,2]
[347070795,1735489861939,-16509.04,0.00012361,2]
[347070796,1735489861957,-1355.28,0.00012361,2]
[347070797,1735489861971,-2104.69,0.00012361,2]
[347070798,1735489861986,-893.81,0.00012361,2]
[347070799,1735489862001,-773.78,0.00012361,2]
[347070800,1735489862017,-500.0,0.00012361,2]
[347070801,1735489862031,-890.01,0.00012361,2]
[347070802,1735489862045,-1251.31,0.00012361,2]
[347070803,1735489862060,-500.0,0.00012361,2]
[347070804,1735489862075,-500.0,0.00012361,2]
[347070805,1735489862089,-909.43,0.00012361,2]
[347070806,1735489862104,-500.0,0.00012361,2]
[347070807,1735489862118,-1051.79,0.00012361,2]
[347070808,1735489862132,-1988.73,0.00012361,2]
[347070809,1735489862146,-500.0,0.00012361,2]
[347070810,1735489862161,-1184.67,0.00012361,2]
[347070811,1735489862175,-500.0,0.00012361,2]
[347070812,1735489862190,-2308.07,0.00012361,2]
[347070813,1735489862203,-500.0,0.00012361,2]
[347070814,1735489862218,-705.54,0.00012361,2]
[347070815,1735489862232,-500.0,0.00012361,2]
[347070816,1735489862247,-1060.41,0.00012361,2]
[347070817,1735489862262,-2299.51,0.00012361,2]
[347070818,1735489862275,-851.46,0.00012361,2]
[347070819,1735489862291,-500.0,0.00012361,2]
[347070820,1735489862305,-964.97,0.00012361,2]
[347070821,1735489862320,-1853.38,0.00012361,2]
[347070822,1735489862335,-1075.86,0.00012361,2]
[347070823,1735489862349,-500.0,0.00012361,2]
[347070824,1735489862363,-2115.26,0.00012361,2]
[347070825,1735489862377,-1352.22,0.00012361,2]
[347070826,1735489862392,-500.0,0.00012361,2]
[347070827,1735489862406,-639.4,0.00012361,2]
[347070828,1735489862424,-849.33,0.00012361,2]
[347070829,1735489862438,-151.0,0.00012362,2]
[347070830,1735489862452,-151.0,0.00012362,2]
[347070831,1735489862466,-500.0,0.00012362,2]
[347070832,1735489862480,-500.0,0.00012362,2]
[347070833,1735489862494,-3181.36,0.00012362,2]
[347070834,1735489862511,-6329.31,0.00012362,2]
[347070835,1735489862526,-3277.49,0.00012362,2]
[347070836,1735489862540,-12312.34,0.00012362,2]
[347070837,1735489862554,-500.0,0.00012362,2]
[347070838,1735489862568,-3574.32,0.00012362,2]
[347070839,1735489862582,-5169.61,0.00012362,2]
[347070840,1735489862597,-3943.77,0.00012362,2]
[347070841,1735489862612,-3305.08,0.00012362,2]
[347070842,1735489862627,-739.21,0.00012362,2]
[347070843,1735489862643,-7280.0,0.00012362,2]
[347070844,1735489862657,-751.24,0.00012362,2]
[347070845,1735489862672,-719.93,0.00012362,2]
[347070846,1735489862687,-1192.86,0.00012362,2]
[347070847,1735489862701,-1143.16,0.00012362,2]
[347070848,1735489862716,-2691.11,0.00012362,2]
[347070849,1735489862730,-2885.5,0.00012362,2]
[347070850,1735489862745,-236.902947,0.00012362,2]
[347070851,1735489862763,-236.902947,0.00012362,2]
[347070852,1735489862778,-2387.4,0.00012362,2]
[347070853,1735489862792,-4451.17,0.00012362,2]
[347070854,1735489862808,-151.0,0.00012362,2]
[347070855,1735489862823,-2274.63,0.00012362,2]
[347070856,1735489862838,-6071.49,0.00012362,2]
[347070857,1735489862853,-151.0,0.00012362,2]
[347070858,1735489862867,-3460.09,0.00012362,2]
[347070859,1735489862881,-922.86,0.00012362,2]
[347070860,1735489862896,-184.38878,0.00012362,2]
[347070861,1735489862911,-184.38878,0.00012362,2]
[347070862,1735489862925,-1156.67,0.00012362,2]
[347070863,1735489862940,-151.0,0.00012362,2]
[347070864,1735489862955,-2396.52,0.00012362,2]
[347070865,1735489862969,-3499.32,0.00012362,2]
[347070866,1735489862984,-151.0,0.00012362,2]
[347070867,1735489862998,-2481.53,0.00012362,2]
[347070868,1735489863016,-2018.38,0.00012362,2]
[347070869,1735489863032,-683.43,0.00012362,2]
[347070870,1735489863048,-151.0,0.00012362,2]
[347070871,1735489863064,-151.0,0.00012362,2]
[347070872,1735489863081,-5328.55,0.00012362,2]
[347070873,1735489863097,-2716.03,0.00012362,2]
[347070874,1735489863114,-3917.79,0.00012362,2]
[347070875,1735489863131,-1605.45,0.00012362,2]
[347070876,1735489863148,-45088.26,0.00012362,2]
[347070877,1735489863164,-6385.49,0.00012362,2]
[347070878,1735489863181,-28481.33,0.00012362,2]
[347070879,1735489863196,-1823.7,0.00012362,2]
[347070880,1735489863211,-500.0,0.00012363,2]
[347070881,1735489863226,-151.0,0.00012363,2]
[347070882,1735489863241,-151.0,0.00012363,2]
[347070883,1735489863257,-151.0,0.00012363,2]
[347070884,1735489863273,-5818.51,0.00012363,2]
[347070885,1735489863288,-1291.66,0.00012363,2]
[347070886,1735489863304,-1926.58,0.00012363,2]
[347070887,1735489863314,-4336.05,0.00012363,2]
[347070888,1735489863324,-5033.79,0.00012363,2]
[347070889,1735489863334,-151.0,0.00012364,2]
[347070890,1735489863345,-151.0,0.00012365,2]
[347070891,1735489863356,-500.0,0.00012365,2]
[347070892,1735489863366,-500.0,0.00012398,2]
[347070893,1735489863376,-564.3,0.00012398,2]
[347070894,1735489863386,-151.0,0.00012399,2]
[347070895,1735489863396,-151.0,0.00012399,2]
[347070896,1735489863406,-151.0,0.00012399,2]
[347070897,1735489863688,-151.0,0.00012399,2]
[347070898,1735489863789,-217.39787654,0.00012434,2]
[347070899,1735489863807,-423.06779596,0.00012498,2]
[347070900,1735489863818,-3500.0,0.000125,4]
[347070901,1735489863830,-865.2558407,0.00012504,2]
[347070902,1735489863841,-510.97,0.00012534,2]
[347070903,1735489863851,-1306.56,0.00012534,2]
[347070904,1735489863862,-500.0,0.00012534,2]
[347070905,1735489863871,-968.82,0.00012534,2]
[347070906,1735489863881,-1952.26,0.00012534,2]
[347070907,1735489863891,-1407.8,0.00012534,2]
[347070908,1735489863901,-1583.19,0.00012534,2]
[347070909,1735489863911,-1048.33,0.00012534,2]
[347070910,1735489863922,-900.45,0.00012534,2]
[347070911,1735489863932,-669.37,0.00012534,2]
[347070912,1735489863943,-1013.65,0.00012534,2]
[347070913,1735489863954,-1333.84,0.00012534,2]
[347070914,1735489863964,-701.57,0.00012534,2]
[347070915,1735489863974,-616.81,0.00012534,2]
[347070916,1735489863985,-1458.91,0.00012534,2]
[347070917,1735489863995,-1791.59,0.00012534,2]
[347070918,1735489864005,-500.0,0.00012534,2]
[347070919,1735489864015,-500.0,0.00012534,2]
[347070920,1735489864025,-500.0,0.00012534,2]
[347070921,1735489864035,-500.0,0.00012534,2]
[347070922,1735489864045,-500.0,0.00012534,2]
[347070923,1735489864055,-500.0,0.00012534,2]
[347070924,1735489864064,-887.59,0.00012534,2]
[347070925,1735489864074,-2024.5,0.00012534,2]
[347070926,1735489864084,-1199.76,0.00012534,2]
[347070927,1735489864094,-1139.1,0.00012534,2]
[347070928,1735489864104,-500.0,0.00012534,2]
[347070929,1735489864114,-1849.25,0.00012534,2]
[347070930,1735489864124,-834.81,0.00012534,2]
[347070931,1735489864134,-1070.95,0.00012534,2]
[347070932,1735489864144,-500.0,0.00012534,2]
[347070933,1735489864154,-936.54,0.00012534,2]
[347070934,1735489864165,-500.0,0.00012534,2]
[347070935,1735489864175,-2044.8,0.00012534,2]
[347070936,1735489864186,-1357.53,0.00012534,2]
[347070937,1735489864196,-852.21,0.00012534,2]
[347070938,1735489864206,-664.74,0.00012534,2]
[347070939,1735489864217,-2081.2,0.00012534,2]
[347070940,1735489864227,-500.0,0.00012534,2]
[347070941,1735489864237,-1193.34,0.00012534,2]
[347070942,1735489864248,-1949.38,0.00012534,2]
[347070943,1735489864257,-1499.21,0.00012534,2]
[347070944,1735489864267,-957.19,0.00012534,2]
[347070945,1735489864277,-1086.74,0.00012534,2]
[347070946,1735489864287,-1671.48,0.00012534,2]
[347070947,1735489864297,-1109.88,0.00012534,2]
[347070948,1735489864306,-1401.41,0.00012534,2]
[347070949,1735489864316,-2210.72,0.00012534,2]
[347070950,1735489864327,-2145.94,0.00012534,2]
[347070951,1735489864337,-2179.71,0.00012534,2]
[347070952,1735489864347,-1629.52,0.00012535,2]
[347070953,1735489864357,-1138.87,0.00012535,2]
[347070954,1735489864367,-526.0,0.00012535,2]
[347070955,1735489864377,-872.22,0.00012535,2]
[347070956,1735489864387,-1239.13,0.00012535,2]
[347070957,1735489864397,-947.43,0.00012535,2]
[347070958,1735489864407,-1354.94,0.00012535,2]
[347070959,1735489864417,-1847.85,0.00012535,2]
[347070960,1735489864427,-2077.72,0.00012535,2]
[347070961,1735489864436,-885.81,0.00012535,2]
[347070962,1735489864445,-1258.17,0.00012535,2]
[347070963,1735489864455,-1096.6,0.00012535,2]
[347070964,1735489864466,-1647.5,0.00012535,2]
[347070965,1735489864476,-936.49,0.00012535,2]
[347070966,1735489864488,-1965.02,0.00012535,2]
[347070967,1735489864498,-500.0,0.00012535,2]
[347070968,1735489864508,-1270.11,0.00012535,2]
[347070969,1735489864518,-735.69,0.00012535,2]
[347070970,1735489864528,-1915.81,0.00012535,2]
[347070971,1735489864538,-500.0,0.00012535,2]
[347070972,1735489864548,-1704.31,0.00012535,2]
[347070973,1735489864558,-601.41,0.00012535,2]
[347070974,1735489864568,-842.62,0.00012535,2]
[347070975,1735489864577,-497.13495005,0.00012535,2]
[347070976,1735489864587,-917.37,0.00012535,2]
[347070977,1735489864597,-1178.93,0.00012535,2]
[347070978,1735489864608,-1187.17,0.00012535,2]
[347070979,1735489864618,-500.0,0.00012535,2]
[347070980,1735489864628,-857.11,0.00012535,2]
[347070981,1735489864638,-564.3,0.00012535,2]
[347070982,1735489864648,-637.8,0.00012535,2]
[347070983,1735489864658,-1174.42,0.00012535,2]
[347070984,1735489864668,-1426.37,0.00012535,2]
[347070985,1735489864678,-591.13,0.00012535,2]
[347070986,1735489864687,-901.33,0.00012535,2]